[Event "*** SCC Grand Prix: Titled Tuesday Blitz"]
[Site "Chess.com"]
[Date "2020.06.02"]
[Round "7"]
[White "CaspiIsrael"]
[Black "youngKID"]
[Result "0-1"]
[WhiteElo "2584"]
[BlackElo "2767"]
[TimeControl "180+1"]
[EndTime "11:21:02 PDT"]
[Termination "youngKID won by checkmate"]

1. e4 {[%clk 0:03:00.9]} 1... c5 {[%clk 0:03:00]} 2. Nf3 {[%clk 0:03:00.1]} 2...
Nc6 {[%clk 0:03:00.1]} 3. d4 {[%clk 0:03:00.4]} 3... cxd4 {[%clk 0:03:01]} 4.
Nxd4 {[%clk 0:03:01.3]} 4... Nf6 {[%clk 0:03:01.4]} 5. Nc3 {[%clk 0:03:01.3]}
5... d6 {[%clk 0:03:01.7]} 6. f3 {[%clk 0:03:01.2]} 6... e5 {[%clk 0:02:59.6]}
7. Nb3 {[%clk 0:03:01]} 7... Be6 {[%clk 0:02:59.5]} 8. Nd5 {[%clk 0:03:00.6]}
8... Be7 {[%clk 0:02:58.6]} 9. Be3 {[%clk 0:02:59.2]} 9... O-O {[%clk
0:02:57.7]} 10. Qd2 {[%clk 0:02:59.1]} 10... a5 {[%clk 0:02:57.9]} 11. c4 {[%clk
0:02:58.8]} 11... a4 {[%clk 0:02:57.6]} 12. Nc1 {[%clk 0:02:58.6]} 12... a3
{[%clk 0:02:35.8]} 13. b4 {[%clk 0:02:32.2]} 13... Bxd5 {[%clk 0:02:28]} 14.
cxd5 {[%clk 0:02:16.9]} 14... Nd4 {[%clk 0:02:26.2]} 15. Ne2 {[%clk 0:02:10.2]}
15... Nxe2 {[%clk 0:02:24.1]} 16. Bxe2 {[%clk 0:02:11.1]} 16... Nh5 {[%clk
0:02:00]} 17. g3 {[%clk 0:02:10.5]} 17... Nf6 {[%clk 0:01:51.7]} 18. O-O {[%clk
0:02:08.7]} 18... Qd7 {[%clk 0:01:44]} 19. Rfc1 {[%clk 0:02:02.6]} 19... Rfc8
{[%clk 0:01:43.2]} 20. Kg2 {[%clk 0:01:59.1]} 20... h6 {[%clk 0:01:36.3]} 21.
Qd3 {[%clk 0:01:58.6]} 21... Nh7 {[%clk 0:01:32.9]} 22. h4 {[%clk 0:01:53.5]}
22... g5 {[%clk 0:01:21.6]} 23. h5 {[%clk 0:01:48.4]} 23... g4 {[%clk
0:01:21.7]} 24. f4 {[%clk 0:01:43.2]} 24... exf4 {[%clk 0:01:20.1]} 25. gxf4
{[%clk 0:01:39.1]} 25... Bf6 {[%clk 0:01:18]} 26. Rxc8+ {[%clk 0:01:35.1]} 26...
Rxc8 {[%clk 0:01:17.5]} 27. Rc1 {[%clk 0:01:20.3]} 27... Rxc1 {[%clk 0:01:14.4]}
28. Bxc1 {[%clk 0:01:21.2]} 28... Bb2 {[%clk 0:01:14.8]} 29. Be3 {[%clk
0:00:56.1]} 29... Nf6 {[%clk 0:01:14]} 30. Qd1 {[%clk 0:00:51.8]} 30... Qe7
{[%clk 0:01:06.2]} 31. Bd3 {[%clk 0:00:50.4]} 31... Kh8 {[%clk 0:00:55.6]} 32.
Qc2 {[%clk 0:00:47.8]} 32... Qe8 {[%clk 0:00:33.1]} 33. f5 {[%clk 0:00:21.5]}
33... Qe5 {[%clk 0:00:22.3]} 34. Bxh6 {[%clk 0:00:17.2]} 34... Nxh5 {[%clk
0:00:22.5]} 35. Qd2 {[%clk 0:00:15.4]} 35... Qg3+ {[%clk 0:00:21.4]} 36. Kf1
{[%clk 0:00:15.3]} 36... Qf3+ {[%clk 0:00:20.4]} 37. Ke1 {[%clk 0:00:15.7]}
37... Kh7 {[%clk 0:00:17.7]} 38. Be3 {[%clk 0:00:14.3]} 38... Bc3 {[%clk
0:00:12.9]} 39. Qxc3 {[%clk 0:00:14.3]} 39... Qxe3+ {[%clk 0:00:13.5]} 40. Kd1
{[%clk 0:00:14.5]} 40... Nf4 {[%clk 0:00:13.6]} 41. Kc2 {[%clk 0:00:09.2]} 41...
g3 {[%clk 0:00:14]} 42. e5 {[%clk 0:00:09.1]} 42... dxe5 {[%clk 0:00:09.2]} 43.
Bf1 {[%clk 0:00:05.5]} 43... Qxc3+ {[%clk 0:00:08.6]} 44. Kxc3 {[%clk
0:00:06.4]} 44... Nxd5+ {[%clk 0:00:09.3]} 45. Kc4 {[%clk 0:00:06.4]} 45... Ne3+
{[%clk 0:00:09.5]} 46. Kc5 {[%clk 0:00:06.4]} 46... Nxf1 {[%clk 0:00:10.4]} 47.
Kb6 {[%clk 0:00:07.2]} 47... g2 {[%clk 0:00:10.9]} 48. Kxb7 {[%clk 0:00:08.1]}
48... g1=Q {[%clk 0:00:11.8]} 49. b5 {[%clk 0:00:09]} 49... Qc5 {[%clk
0:00:12.1]} 50. b6 {[%clk 0:00:09.9]} 50... Ne3 {[%clk 0:00:11.8]} 51. Ka7
{[%clk 0:00:10.8]} 51... Nxf5 {[%clk 0:00:12.6]} 52. Ka8 {[%clk 0:00:10.9]}
52... Nd6 {[%clk 0:00:13.5]} 53. b7 {[%clk 0:00:11.3]} 53... Qa5+ {[%clk
0:00:14.1]} 54. Kb8 {[%clk 0:00:11.5]} 54... Qb6 {[%clk 0:00:15]} 55. Ka8 {[%clk
0:00:12.4]} 55... Qxb7# {[%clk 0:00:15.9]} 0-1

[Event "*** SCC Grand Prix: Titled Tuesday Blitz"]
[Site "Chess.com"]
[Date "2020.06.02"]
[Round "7"]
[White "DenisQ"]
[Black "swimmerchess"]
[Result "1-0"]
[WhiteElo "2607"]
[BlackElo "2816"]
[TimeControl "180+1"]
[EndTime "11:21:04 PDT"]
[Termination "DenisQ won by resignation"]

1. Nf3 {[%clk 0:03:00.9]} 1... Nf6 {[%clk 0:02:59.5]} 2. c4 {[%clk 0:03:00.2]}
2... g6 {[%clk 0:02:59.7]} 3. Nc3 {[%clk 0:03:00]} 3... Bg7 {[%clk 0:03:00.6]}
4. g3 {[%clk 0:03:00.2]} 4... d6 {[%clk 0:03:01.5]} 5. Bg2 {[%clk 0:03:00.4]}
5... O-O {[%clk 0:03:02.4]} 6. O-O {[%clk 0:03:00.4]} 6... e5 {[%clk 0:03:02.8]}
7. Rb1 {[%clk 0:02:57.5]} 7... Nc6 {[%clk 0:02:58.5]} 8. b4 {[%clk 0:02:56.9]}
8... Re8 {[%clk 0:02:51.5]} 9. b5 {[%clk 0:02:56.1]} 9... Nd4 {[%clk 0:02:50.7]}
10. d3 {[%clk 0:02:39.1]} 10... Bg4 {[%clk 0:02:41.1]} 11. Bg5 {[%clk
0:02:38.1]} 11... Nxf3+ {[%clk 0:02:26]} 12. Bxf3 {[%clk 0:02:36.7]} 12... Bxf3
{[%clk 0:02:25.3]} 13. exf3 {[%clk 0:02:37.6]} 13... h6 {[%clk 0:02:24.3]} 14.
Bxf6 {[%clk 0:02:36.9]} 14... Qxf6 {[%clk 0:02:25.2]} 15. Nd5 {[%clk 0:02:33.9]}
15... Qd8 {[%clk 0:02:23.5]} 16. Qa4 {[%clk 0:02:19.3]} 16... Qd7 {[%clk
0:02:19.1]} 17. Kg2 {[%clk 0:02:18.1]} 17... a5 {[%clk 0:02:03.4]} 18. Rfe1
{[%clk 0:02:10.6]} 18... b6 {[%clk 0:02:02.9]} 19. Qc2 {[%clk 0:02:06.6]} 19...
Re6 {[%clk 0:02:01.3]} 20. h4 {[%clk 0:02:01.4]} 20... h5 {[%clk 0:01:56]} 21.
Re2 {[%clk 0:01:58.2]} 21... Rae8 {[%clk 0:01:51.3]} 22. Rbe1 {[%clk 0:01:57.7]}
22... Bh6 {[%clk 0:01:48.6]} 23. f4 {[%clk 0:01:41]} 23... Bg7 {[%clk
0:01:25.1]} 24. fxe5 {[%clk 0:01:39.4]} 24... Bxe5 {[%clk 0:01:26]} 25. Qd2
{[%clk 0:01:25.8]} 25... Bg7 {[%clk 0:01:20.1]} 26. Qd1 {[%clk 0:01:18.9]} 26...
Kh7 {[%clk 0:01:15.4]} 27. Nf4 {[%clk 0:01:16.4]} 27... Re5 {[%clk 0:01:13.7]}
28. Re4 {[%clk 0:01:11.3]} 28... c6 {[%clk 0:01:03.4]} 29. bxc6 {[%clk
0:01:08.4]} 29... Qxc6 {[%clk 0:01:04.3]} 30. Qf3 {[%clk 0:01:07.2]} 30... b5
{[%clk 0:00:59.3]} 31. Rxe5 {[%clk 0:01:01.7]} 31... Qxf3+ {[%clk 0:00:59.7]}
32. Kxf3 {[%clk 0:01:02.6]} 32... dxe5 {[%clk 0:01:00.5]} 33. cxb5 {[%clk
0:01:02]} 33... Rd8 {[%clk 0:01:00.6]} 34. Ng2 {[%clk 0:00:57.5]} 34... Rxd3+
{[%clk 0:00:59.1]} 35. Ne3 {[%clk 0:00:57.6]} 35... f5 {[%clk 0:00:50.7]} 36. b6
{[%clk 0:00:55.1]} 36... e4+ {[%clk 0:00:44.8]} 37. Kg2 {[%clk 0:00:48.4]} 37...
Be5 {[%clk 0:00:19.7]} 38. Nc4 {[%clk 0:00:32.4]} 38... Bb8 {[%clk 0:00:18.5]}
39. Nxa5 {[%clk 0:00:31.9]} 39... Ra3 {[%clk 0:00:17.5]} 40. Nc6 {[%clk
0:00:31.7]} 40... Bd6 {[%clk 0:00:17.1]} 41. b7 {[%clk 0:00:31.5]} 41... Rxa2
{[%clk 0:00:16.2]} 42. Rd1 {[%clk 0:00:31.1]} 42... Rb2 {[%clk 0:00:16.7]} 43.
Rxd6 {[%clk 0:00:30.3]} 43... Rxb7 {[%clk 0:00:17.4]} 44. Ne5 {[%clk 0:00:30.8]}
44... Rg7 {[%clk 0:00:16.3]} 45. Rd7 {[%clk 0:00:28.7]} 45... Rxd7 {[%clk
0:00:15.2]} 46. Nxd7 {[%clk 0:00:29.6]} 46... Kg7 {[%clk 0:00:16.1]} 47. f4
{[%clk 0:00:28.5]} 47... Kf7 {[%clk 0:00:14.1]} 48. Kf2 {[%clk 0:00:27.3]} 48...
Ke6 {[%clk 0:00:13.2]} 49. Ne5 {[%clk 0:00:27.1]} 49... Kf6 {[%clk 0:00:09.8]}
50. Ke3 {[%clk 0:00:27.1]} 50... Kg7 {[%clk 0:00:08.1]} 51. Kd4 {[%clk
0:00:27.1]} 51... Kf6 {[%clk 0:00:09]} 52. Kd5 {[%clk 0:00:26]} 52... e3 {[%clk
0:00:09]} 53. Nf3 {[%clk 0:00:25.1]} 53... e2 {[%clk 0:00:09.2]} 54. Kd4 {[%clk
0:00:25]} 54... Ke6 {[%clk 0:00:09.9]} 55. Ke3 {[%clk 0:00:24.4]} 55... Kd5
{[%clk 0:00:10.8]} 56. Kxe2 {[%clk 0:00:24.5]} 56... Ke4 {[%clk 0:00:11.7]} 57.
Ne5 {[%clk 0:00:24.7]} 57... g5 {[%clk 0:00:10.5]} 58. hxg5 {[%clk 0:00:24]}
58... h4 {[%clk 0:00:11.3]} 59. gxh4 {[%clk 0:00:22.7]} 59... Kxf4 {[%clk
0:00:11.8]} 60. g6 {[%clk 0:00:22.9]} 1-0

[Event "*** SCC Grand Prix: Titled Tuesday Blitz"]
[Site "Chess.com"]
[Date "2020.06.02"]
[Round "7"]
[White "Parkas"]
[Black "Unknown_IM"]
[Result "1-0"]
[WhiteElo "2331"]
[BlackElo "2488"]
[TimeControl "180+1"]
[EndTime "11:21:04 PDT"]
[Termination "Parkas won on time"]

1. c4 {[%clk 0:03:00.9]} 1... Nf6 {[%clk 0:02:59.9]} 2. g3 {[%clk 0:03:00.6]}
2... c5 {[%clk 0:02:58.8]} 3. Bg2 {[%clk 0:03:00.5]} 3... e6 {[%clk 0:02:59.1]}
4. Nf3 {[%clk 0:02:59.5]} 4... Be7 {[%clk 0:03:00]} 5. O-O {[%clk 0:02:59.2]}
5... O-O {[%clk 0:03:00.9]} 6. b3 {[%clk 0:02:58.9]} 6... d5 {[%clk 0:03:01.4]}
7. cxd5 {[%clk 0:02:58.7]} 7... Nxd5 {[%clk 0:03:01.3]} 8. Bb2 {[%clk
0:02:53.8]} 8... Nc6 {[%clk 0:03:00.8]} 9. d4 {[%clk 0:02:50.6]} 9... b6 {[%clk
0:02:52.8]} 10. dxc5 {[%clk 0:02:38.4]} 10... Bxc5 {[%clk 0:02:50.5]} 11. a3
{[%clk 0:02:32.9]} 11... Bb7 {[%clk 0:02:49.7]} 12. b4 {[%clk 0:02:32.6]} 12...
Be7 {[%clk 0:02:48.9]} 13. Qb3 {[%clk 0:02:29.7]} 13... Bf6 {[%clk 0:02:39.2]}
14. Bxf6 {[%clk 0:02:04.4]} 14... Qxf6 {[%clk 0:02:40.1]} 15. Nbd2 {[%clk
0:02:04.3]} 15... Nc3 {[%clk 0:02:32.4]} 16. Rfe1 {[%clk 0:01:58.8]} 16... Nxe2+
{[%clk 0:02:31.9]} 17. Kh1 {[%clk 0:01:58.1]} 17... Ned4 {[%clk 0:02:29.5]} 18.
Qb2 {[%clk 0:01:52.2]} 18... Nxf3 {[%clk 0:02:15.2]} 19. Qxf6 {[%clk 0:01:51]}
19... gxf6 {[%clk 0:02:16.1]} 20. Bxf3 {[%clk 0:01:48]} 20... Rfd8 {[%clk
0:02:15.1]} 21. Red1 {[%clk 0:01:41.5]} 21... Rac8 {[%clk 0:02:03.6]} 22. Ne4
{[%clk 0:01:34.4]} 22... Ba8 {[%clk 0:01:25.8]} 23. Nxf6+ {[%clk 0:01:33.5]}
23... Kg7 {[%clk 0:01:25.2]} 24. Nh5+ {[%clk 0:01:31]} 24... Kg8 {[%clk
0:01:22.8]} 25. Kg2 {[%clk 0:01:11.5]} 25... Nd4 {[%clk 0:01:15.1]} 26. Bxa8
{[%clk 0:01:05.2]} 26... Rxa8 {[%clk 0:01:16]} 27. Rac1 {[%clk 0:01:02.1]} 27...
Kf8 {[%clk 0:01:05]} 28. Nf6 {[%clk 0:00:56.5]} 28... Ke7 {[%clk 0:00:54.2]} 29.
Nxh7 {[%clk 0:00:55.1]} 29... Nb5 {[%clk 0:00:15.4]} 30. Rxd8 {[%clk 0:00:46.5]}
30... Rxd8 {[%clk 0:00:16.3]} 31. a4 {[%clk 0:00:47.1]} 31... Nd4 {[%clk
0:00:15.9]} 32. h4 {[%clk 0:00:43.2]} 32... f6 {[%clk 0:00:10.8]} 33. Rc7+
{[%clk 0:00:42.3]} 33... Rd7 {[%clk 0:00:10.9]} 34. Rxd7+ {[%clk 0:00:41.9]}
34... Kxd7 {[%clk 0:00:11.8]} 35. Nxf6+ {[%clk 0:00:42.5]} 35... Ke7 {[%clk
0:00:12.7]} 36. Ne4 {[%clk 0:00:38.1]} 36... Nc2 {[%clk 0:00:12.5]} 37. b5
{[%clk 0:00:37.5]} 37... Nd4 {[%clk 0:00:10.5]} 38. g4 {[%clk 0:00:34.4]} 38...
Nb3 {[%clk 0:00:08.5]} 39. Kf3 {[%clk 0:00:31.2]} 39... e5 {[%clk 0:00:08]} 40.
Nc3 {[%clk 0:00:30.1]} 40... Ke6 {[%clk 0:00:07.5]} 41. Ke3 {[%clk 0:00:28.9]}
41... Nc5 {[%clk 0:00:06.8]} 42. f4 {[%clk 0:00:25.2]} 42... exf4+ {[%clk
0:00:06.9]} 43. Kxf4 {[%clk 0:00:25.5]} 43... Nd3+ {[%clk 0:00:07.2]} 44. Ke4
{[%clk 0:00:24.2]} 44... Nf2+ {[%clk 0:00:06.6]} 45. Kf3 {[%clk 0:00:23.3]}
45... Nd3 {[%clk 0:00:06.7]} 46. Ke4 {[%clk 0:00:16.7]} 46... Nf2+ {[%clk
0:00:06.3]} 47. Kf4 {[%clk 0:00:17.1]} 47... Nd3+ {[%clk 0:00:06.2]} 48. Kg5
{[%clk 0:00:17.6]} 48... Kf7 {[%clk 0:00:05.5]} 49. h5 {[%clk 0:00:17.7]} 49...
Kg7 {[%clk 0:00:05.5]} 50. Kf5 {[%clk 0:00:17.2]} 50... Nb4 {[%clk 0:00:03.8]}
51. g5 {[%clk 0:00:16.9]} 51... Nc2 {[%clk 0:00:02.7]} 52. Nd5 {[%clk
0:00:14.7]} 52... Ne3+ {[%clk 0:00:02.7]} 53. Ke6 {[%clk 0:00:12.3]} 1-0

[Event "*** SCC Grand Prix: Titled Tuesday Blitz"]
[Site "Chess.com"]
[Date "2020.06.02"]
[Round "7"]
[White "mikerahal"]
[Black "Larina_Marija"]
[Result "0-1"]
[WhiteElo "2244"]
[BlackElo "2125"]
[TimeControl "180+1"]
[EndTime "11:21:04 PDT"]
[Termination "Larina_Marija won by resignation"]

1. e4 {[%clk 0:03:00.9]} 1... d5 {[%clk 0:02:59.4]} 2. exd5 {[%clk 0:03:00]}
2... Qxd5 {[%clk 0:03:00.3]} 3. Nc3 {[%clk 0:03:00]} 3... Qa5 {[%clk 0:03:00.2]}
4. d4 {[%clk 0:02:59.9]} 4... Nf6 {[%clk 0:02:59.5]} 5. Nf3 {[%clk 0:02:58.1]}
5... Bf5 {[%clk 0:02:59.1]} 6. Bc4 {[%clk 0:02:37.9]} 6... e6 {[%clk 0:02:58.2]}
7. Bd2 {[%clk 0:02:36.1]} 7... c6 {[%clk 0:02:53.7]} 8. O-O {[%clk 0:02:29.3]}
8... Be7 {[%clk 0:02:53.1]} 9. Nd5 {[%clk 0:02:18.2]} 9... Qd8 {[%clk
0:02:51.6]} 10. Nxe7 {[%clk 0:02:18.5]} 10... Qxe7 {[%clk 0:02:52.5]} 11. a3
{[%clk 0:02:08.3]} 11... a5 {[%clk 0:02:51.8]} 12. Ne5 {[%clk 0:02:02.9]} 12...
O-O {[%clk 0:02:42]} 13. Bg5 {[%clk 0:01:55.7]} 13... h6 {[%clk 0:02:39.6]} 14.
Bh4 {[%clk 0:01:54.6]} 14... Rd8 {[%clk 0:02:28.2]} 15. c3 {[%clk 0:01:32.3]}
15... Nbd7 {[%clk 0:02:27.3]} 16. Qe2 {[%clk 0:01:24.5]} 16... Nb6 {[%clk
0:02:16.7]} 17. Bb3 {[%clk 0:01:19.7]} 17... Nbd5 {[%clk 0:02:15.2]} 18. Bg3
{[%clk 0:01:05.1]} 18... a4 {[%clk 0:02:09.4]} 19. Ba2 {[%clk 0:01:03.8]} 19...
c5 {[%clk 0:01:58.6]} 20. dxc5 {[%clk 0:00:57.1]} 20... Qxc5 {[%clk 0:01:57.9]}
21. Rad1 {[%clk 0:00:54.4]} 21... Ne4 {[%clk 0:01:48.9]} 22. Rd4 {[%clk
0:00:39.5]} 22... Nxg3 {[%clk 0:01:45.3]} 23. hxg3 {[%clk 0:00:40.4]} 23... Nf6
{[%clk 0:01:30.2]} 24. Rxd8+ {[%clk 0:00:35.5]} 24... Rxd8 {[%clk 0:01:31.1]}
25. Re1 {[%clk 0:00:33.7]} 25... b5 {[%clk 0:01:28.7]} 26. g4 {[%clk 0:00:30.9]}
26... Bh7 {[%clk 0:01:19.1]} 27. Nxf7 {[%clk 0:00:25.3]} 27... Re8 {[%clk
0:01:17]} 28. Ne5 {[%clk 0:00:22.7]} 28... Ne4 {[%clk 0:01:14.5]} 29. Nf3 {[%clk
0:00:19.6]} 29... Bg6 {[%clk 0:01:08.4]} 30. Nd4 {[%clk 0:00:19.8]} 30... Kh7
{[%clk 0:00:45.7]} 31. Bb1 {[%clk 0:00:18.9]} 31... Ng5 {[%clk 0:00:39.9]} 32.
Bxg6+ {[%clk 0:00:14.5]} 32... Kxg6 {[%clk 0:00:40.8]} 33. Qd3+ {[%clk
0:00:15.2]} 33... Kf7 {[%clk 0:00:40.7]} 34. Qg3 {[%clk 0:00:14.9]} 34... Re7
{[%clk 0:00:37]} 35. Kh1 {[%clk 0:00:14.7]} 35... Kg8 {[%clk 0:00:36.5]} 36. Re5
{[%clk 0:00:14.5]} 36... Qc4 {[%clk 0:00:34.6]} 37. Qe3 {[%clk 0:00:14.9]} 37...
Qf1+ {[%clk 0:00:34]} 38. Kh2 {[%clk 0:00:15.5]} 38... Rf7 {[%clk 0:00:28.6]}
39. f3 {[%clk 0:00:12.2]} 39... Rf6 {[%clk 0:00:21.1]} 40. Nxe6 {[%clk 0:00:12]}
40... Nxf3+ {[%clk 0:00:15.5]} 41. gxf3 {[%clk 0:00:09.1]} 41... Rxf3 {[%clk
0:00:16.1]} 42. Qxf3 {[%clk 0:00:02.8]} 42... Qxf3 {[%clk 0:00:16]} 43. Re1
{[%clk 0:00:02.4]} 43... Qxg4 {[%clk 0:00:15.5]} 44. Nd4 {[%clk 0:00:01.4]}
44... Qh4+ {[%clk 0:00:15.5]} 45. Kg2 {[%clk 0:00:02]} 45... Qxe1 {[%clk
0:00:15.9]} 0-1

[Event "*** SCC Grand Prix: Titled Tuesday Blitz"]
[Site "Chess.com"]
[Date "2020.06.02"]
[Round "7"]
[White "Jumbo"]
[Black "DaggiGretarsson"]
[Result "1-0"]
[WhiteElo "2847"]
[BlackElo "2674"]
[TimeControl "180+1"]
[EndTime "11:21:05 PDT"]
[Termination "Jumbo won on time"]

1. d4 {[%clk 0:03:00.9]} 1... g6 {[%clk 0:02:59.8]} 2. Nf3 {[%clk 0:02:57.7]}
2... Bg7 {[%clk 0:02:59.9]} 3. g3 {[%clk 0:02:52.5]} 3... d5 {[%clk 0:02:55]} 4.
c4 {[%clk 0:02:51.4]} 4... c6 {[%clk 0:02:52]} 5. Bg2 {[%clk 0:02:51.6]} 5...
Nf6 {[%clk 0:02:51.5]} 6. O-O {[%clk 0:02:51.9]} 6... O-O {[%clk 0:02:51.4]} 7.
Nbd2 {[%clk 0:02:51.9]} 7... a5 {[%clk 0:02:35.6]} 8. b3 {[%clk 0:02:50.3]} 8...
a4 {[%clk 0:02:35]} 9. Ba3 {[%clk 0:02:50.6]} 9... Re8 {[%clk 0:02:31]} 10. e3
{[%clk 0:02:48.6]} 10... Bf5 {[%clk 0:02:25.7]} 11. Qe2 {[%clk 0:02:47.5]} 11...
Ne4 {[%clk 0:02:22.5]} 12. Nxe4 {[%clk 0:02:31.9]} 12... Bxe4 {[%clk 0:02:21.9]}
13. Bh3 {[%clk 0:02:31.8]} 13... Bxf3 {[%clk 0:01:45]} 14. Qxf3 {[%clk
0:02:32.7]} 14... e6 {[%clk 0:01:45.3]} 15. Rfd1 {[%clk 0:02:23.2]} 15... Nd7
{[%clk 0:01:44.7]} 16. e4 {[%clk 0:02:20.5]} 16... axb3 {[%clk 0:01:42]} 17.
axb3 {[%clk 0:02:17]} 17... dxc4 {[%clk 0:01:29.5]} 18. bxc4 {[%clk 0:02:09.5]}
18... c5 {[%clk 0:01:29.8]} 19. d5 {[%clk 0:00:54.9]} 19... Bxa1 {[%clk
0:00:56.6]} 20. Rxa1 {[%clk 0:00:50.1]} 20... Qf6 {[%clk 0:00:53.3]} 21. Qxf6
{[%clk 0:00:31.8]} 21... Nxf6 {[%clk 0:00:53.3]} 22. e5 {[%clk 0:00:32.1]} 22...
Nd7 {[%clk 0:00:40.9]} 23. f4 {[%clk 0:00:26.5]} 23... Nf8 {[%clk 0:00:27.6]}
24. Bg2 {[%clk 0:00:21.2]} 24... Ra7 {[%clk 0:00:26.2]} 25. Bb2 {[%clk
0:00:18.4]} 25... Rxa1+ {[%clk 0:00:25.7]} 26. Bxa1 {[%clk 0:00:19]} 26... Ra8
{[%clk 0:00:25.7]} 27. Bc3 {[%clk 0:00:19.5]} 27... Ra3 {[%clk 0:00:18.9]} 28.
Be1 {[%clk 0:00:18.9]} 28... b6 {[%clk 0:00:16.5]} 29. d6 {[%clk 0:00:17.5]}
29... Nd7 {[%clk 0:00:15.4]} 30. Bc6 {[%clk 0:00:17]} 30... Ra7 {[%clk
0:00:15.4]} 31. Bb5 {[%clk 0:00:16.5]} 31... h5 {[%clk 0:00:13.4]} 32. Kf2
{[%clk 0:00:15.6]} 32... Kf8 {[%clk 0:00:13.1]} 33. Ke3 {[%clk 0:00:14.6]} 33...
Ke8 {[%clk 0:00:13.1]} 34. h4 {[%clk 0:00:10.5]} 34... Kd8 {[%clk 0:00:12.4]}
35. Bd2 {[%clk 0:00:10.3]} 35... Ra3+ {[%clk 0:00:11.3]} 36. Kf2 {[%clk
0:00:10.8]} 36... Nb8 {[%clk 0:00:09.5]} 37. Be3 {[%clk 0:00:10]} 37... Na6
{[%clk 0:00:09.1]} 38. Ke2 {[%clk 0:00:09.7]} 38... Nb4 {[%clk 0:00:09]} 39. Bf2
{[%clk 0:00:10.2]} 39... Nc2 {[%clk 0:00:05.7]} 40. Kf1 {[%clk 0:00:02.8]} 40...
Ne3+ {[%clk 0:00:04.1]} 41. Kg1 {[%clk 0:00:02.4]} 41... Ra1+ {[%clk 0:00:03.1]}
42. Kh2 {[%clk 0:00:02.2]} 42... Ra2 {[%clk 0:00:03.4]} 43. Kg1 {[%clk
0:00:02.1]} 43... Ng4 {[%clk 0:00:02.5]} 44. Be1 {[%clk 0:00:02.6]} 44... Ra1
{[%clk 0:00:02.1]} 45. Kf1 {[%clk 0:00:03.1]} 45... Ra2 {[%clk 0:00:01.8]} 46.
Bc3 {[%clk 0:00:02.8]} 46... Ne3+ {[%clk 0:00:01.5]} 47. Ke1 {[%clk 0:00:03.2]}
1-0